bitfinex/quotes_ETHUSD_20241130
["timestamp","ask_amount","ask_price","bid_price","bid_amount"]
[1732948407250,0.55,3714.3,3713.6,2.69277]
[1732948407456,0.55,3714.3,3713.3,2.69295]
[1732948407641,0.55,3714.3,3713.1,1.6592]
[1732948407840,0.55,3714.3,3713.3,2.69302]
[1732948408143,1.12987059,3714.3,3713.7,2.69267]
[1732948408529,0.55,3714.3,3713.9,2.69255]
[1732948408741,0.55,3714.3,3714.0,2.69247]
[1732948408936,0.55,3714.5,3713.8,2.69265]
[1732948409150,0.55,3714.5,3713.3,2.69297]
[1732948409354,0.55,3714.5,3713.7,2.69273]
[1732948409554,0.75908,3714.5,3714.0,2.69251]
[1732948410680,0.75908,3714.5,3714.0,2.69248]
[1732948410984,0.75908,3714.5,3713.9,2.69258]
[1732948411337,0.75908,3714.5,3714.0,2.69245]
[1732948411534,2.08392169,3714.6,3713.3,3.0]
[1732948411741,2.08392169,3714.6,3713.2,5.22284558]
[1732948411742,2.08392169,3714.6,3714.5,2.69215]
[1732948412151,1.5408,3714.6,3714.5,2.69215]
[1732948413279,2.0908,3714.6,3714.5,2.69215]
[1732948413634,0.55,3714.6,3714.5,2.69215]
[1732948414891,0.0024,3714.9,3714.8,2.69193]
[1732948415043,0.0024,3714.9,3714.5,2.6921]
[1732948415249,0.0024,3714.9,3714.1,3.0]
[1732948415464,0.55334341,3714.9,3714.7,2.69198]
[1732948416197,0.55334341,3714.9,3714.5,2.69209]
[1732948416198,0.55334341,3714.9,3714.8,2.69193]
[1732948416720,0.0024,3714.9,3714.8,2.69193]
[1732948419213,1.5454,3714.8,3714.0,2.69248]
[1732948419413,0.55,3714.6,3714.0,2.69248]
[1732948420323,0.55,3714.6,3713.8,2.69265]
[1732948420473,0.55,3714.6,3714.1,2.69243]
[1732948420669,0.55,3714.6,3713.7,2.69272]
[1732948421022,2.69223,3714.4,3713.7,2.69272]
[1732948421177,2.69223,3714.4,3713.1,1.5761]
[1732948421178,3.2423,3714.3,3713.6,2.69278]
[1732948421510,0.55,3714.1,3713.7,2.69272]
[1732948421714,0.55,3714.1,3713.1,1.5761]
[1732948421913,0.55,3714.1,3714.0,2.69251]
[1732948424090,1.5478,3714.9,3713.8,2.6926]
[1732948424091,0.0024,3714.9,3714.8,2.69193]
[1732948425790,0.0024,3714.9,3714.7,2.69198]
[1732948426300,0.0024,3714.9,3714.8,2.69193]
[1732948427041,0.0024,3714.9,3714.6,2.69206]
[1732948427341,0.0024,3714.9,3714.7,2.69199]
[1732948427691,0.0024,3714.9,3714.6,2.69205]
[1732948427913,0.0024,3714.9,3714.8,2.69193]
[1732948428800,0.0024,3714.9,3713.9,2.69253]
[1732948428801,0.55,3714.7,3714.1,2.69243]
[1732948429134,3.724369,3714.7,3713.9,2.69257]
[1732948429342,0.55,3714.5,3713.7,2.69272]
[1732948429642,0.55,3714.5,3713.4,2.69294]
[1732948429809,0.55,3714.7,3714.0,2.69244]
[1732948430194,0.55,3714.7,3713.8,0.2691]
[1732948430195,0.55,3714.7,3713.8,2.96172]
[1732948430397,0.55,3714.7,3714.4,2.6922]
[1732948430739,0.0024,3714.9,3714.2,2.69236]
[1732948430921,0.0024,3714.9,3714.4,2.69221]
[1732948431241,0.0024,3714.9,3714.2,2.69236]
[1732948431435,0.5524,3714.9,3714.0,2.96157]
[1732948431880,0.0024,3714.9,3714.0,2.96157]
[1732948432079,0.0024,3714.9,3714.1,2.69241]
[1732948432483,0.0024,3714.9,3714.3,2.69225]
[1732948432639,0.0024,3714.9,3714.4,2.69219]
[1732948433179,0.0024,3714.9,3714.3,2.69225]
[1732948433180,0.0024,3714.9,3714.3,2.69223]
[1732948433362,0.0024,3714.9,3714.1,2.69244]
[1732948433691,0.0024,3714.9,3714.3,2.69226]
[1732948434670,0.0024,3714.9,3714.1,2.96152]
[1732948434671,0.0024,3714.9,3714.4,2.69216]
[1732948436362,0.0024,3714.9,3714.3,2.69228]
[1732948436559,0.0024,3714.9,3714.4,2.69222]
[1732948436756,0.0024,3714.9,3713.9,1.6382]
[1732948436957,0.0024,3714.9,3714.2,3.0]
[1732948437186,0.0024,3714.9,3714.6,2.692]
[1732948437370,0.0024,3714.9,3714.2,3.0]
[1732948437672,0.0024,3714.9,3714.0,0.2203472]
[1732948437876,0.0024,3714.9,3714.4,2.96132]
[1732948438084,0.0024,3714.9,3714.5,2.69213]
[1732948440311,0.0024,3714.9,3714.8,4.33013]
[1732948440528,1.5814,3714.9,3714.7,0.2691]
[1732948440818,1.5814,3714.9,3714.4,2.69221]
[1732948441369,1.5814,3714.9,3714.5,2.69214]
[1732948441597,0.55,3714.8,3714.5,2.988264]
[1732948441782,0.55,3714.8,3714.5,2.69214]
[1732948442372,0.55,3714.8,3714.4,0.2691]
[1732948442373,0.55,3714.8,3714.6,0.2691]
[1732948442569,0.55,3714.8,3714.7,0.2691]
[1732948442798,0.55,3714.8,3714.5,2.69213]
[1732948443018,0.55,3714.8,3714.7,2.692]
[1732948443216,0.55,3714.8,3714.6,0.2691]
[1732948443673,0.55,3714.8,3714.7,2.692]
[1732948443879,0.0024,3714.9,3714.8,2.96103]
[1732948444070,0.0024,3714.9,3714.8,0.2691]
[1732948444715,0.0024,3714.9,3714.4,0.2691]
[1732948444886,0.0024,3714.9,3714.3,2.69229]
[1732948445084,0.0024,3714.9,3714.5,2.69211]
[1732948445335,0.5524,3714.9,3714.5,2.69211]
[1732948445475,0.5524,3714.9,3714.3,2.69228]
[1732948445671,0.5524,3714.9,3714.3,3.499851]
[1732948446675,0.5524,3714.9,3714.5,0.2691]
[1732948447422,0.5524,3714.9,3714.0,2.9616]
[1732948447930,3.24426,3714.9,3714.0,2.9616]
[1732948448886,3.24426,3714.9,3713.4,3.0]
[1732948448887,2.69194,3714.8,3713.9,0.2691]
[1732948449086,0.55,3713.9,3713.2,0.2691]
[1732948449402,0.55,3713.9,3713.2,2.96219]
[1732948449587,0.55,3713.9,3713.2,0.2691]
[1732948449790,0.55,3713.7,3713.1,2.69316]
[1732948449994,0.55,3713.7,3713.1,2.962476]
[1732948450324,0.55,3713.7,3713.4,0.2691]
[1732948451388,0.55,3713.7,3713.5,0.2691]
[1732948452407,0.55,3713.7,3713.6,0.2691]
[1732948452714,1.5939,3714.1,3713.6,0.2691]
[1732948452715,0.55,3714.0,3713.6,2.96184]
[1732948452897,0.55,3714.0,3713.6,0.2691]
[1732948453243,0.55,3714.3,3713.8,2.69263]
[1732948453533,1.5939,3714.4,3713.8,2.69265]
[1732948454318,1.5939,3714.4,3713.7,4.46442]
[1732948454525,1.5939,3714.4,3713.9,2.69256]
[1732948454843,0.55,3714.3,3713.9,2.69256]
[1732948455254,0.55,3714.3,3714.0,2.69249]
[1732948456070,0.55,3714.3,3713.7,2.69272]
[1732948456268,1.08791926,3714.3,3713.4,2.69291]
[1732948456488,0.55,3714.3,3713.4,2.69291]
[1732948456763,0.55,3714.3,3713.3,2.69301]
[1732948457172,0.55,3714.1,3713.1,1.5026]
[1732948457374,4.83664,3713.7,3712.7,4.19601]
[1732948457581,0.55,3713.4,3712.5,2.69355]
[1732948457754,3.24297,3713.4,3712.5,2.69355]
[1732948457952,0.55,3713.6,3713.2,2.69309]
[1732948458264,0.55,3713.6,3713.0,2.69323]
[1732948458472,0.55,3713.6,3713.2,2.69308]
[1732948459186,0.55,3713.6,3713.0,2.69323]
[1732948459391,0.55,3713.6,3713.1,2.69313]
[1732948460339,0.55,3713.4,3713.1,2.69313]
[1732948460536,0.55,3713.6,3712.6,2.6935]
[1732948460788,0.55,3713.6,3712.8,2.69332]
[1732948460962,0.55,3713.6,3712.6,2.6935]
[1732948461136,0.55,3713.6,3712.9,2.69331]
[1732948461541,0.55,3713.6,3713.2,2.69308]
[1732948461742,0.55,3713.6,3712.9,0.269331]
[1732948461950,0.55,3713.6,3713.3,2.69302]
[1732948462152,0.55,3713.6,3713.1,2.69311]
[1732948462498,0.55,3713.6,3712.9,2.69329]
[1732948462994,2.69288,3713.5,3712.7,2.69341]
[1732948463201,2.69288,3713.5,3712.5,2.69356]
[1732948463202,0.55,3713.4,3712.5,2.69356]
[1732948463370,2.69302,3713.3,3712.3,2.69373]
[1732948463554,0.55,3713.0,3712.1,2.69388]
[1732948463891,0.55,3713.0,3712.3,2.69369]
[1732948464098,0.55,3713.0,3712.0,1.637]
[1732948464402,0.55,3713.0,3712.0,4.33095]
[1732948464570,0.55,3713.0,3712.3,2.69372]
[1732948466855,0.55,3713.0,3712.3,2.6937]
[1732948467299,0.55,3713.0,3712.1,2.69385]
[1732948467455,0.55,3713.0,3712.2,2.69375]
[1732948467651,1.07764874,3713.0,3712.2,2.69377]
[1732948467908,2.69344,3712.8,3711.8,2.69405]
[1732948468106,1.07764874,3713.0,3711.5,1.5063]
[1732948468107,1.5098,3712.6,3711.5,1.5063]
[1732948468272,0.55,3712.5,3712.0,2.6939]
[1732948468608,0.55,3712.5,3711.7,2.69411]
[1732948468609,0.55,3712.5,3712.1,2.69388]
[1732948468756,0.55,3712.5,3711.7,0.02693641]
[1732948468958,0.55,3712.5,3712.4,2.69367]
[1732948469604,0.55,3712.5,3712.0,2.69395]
[1732948469903,0.55,3712.5,3712.3,2.69373]
[1732948471393,0.55,3712.5,3712.1,2.69387]
[1732948471596,0.55,3712.5,3711.5,1.5063]
[1732948471768,0.55,3712.5,3711.6,2.69425]
[1732948471972,0.55,3712.5,3712.4,2.69367]
[1732948472172,0.55,3712.5,3712.4,4.19997]
[1732948473363,0.55,3712.5,3712.4,2.69367]
[1732948479128,0.55,3712.5,3712.2,2.6938]
[1732948479925,0.55,3712.5,3712.3,2.69374]
[1732948480511,0.52764874,3713.0,3711.7,1.5063]
[1732948480512,0.55,3712.6,3711.7,1.5063]
[1732948480748,0.55,3712.0,3710.7,5.3898]
[1732948480938,0.55,3711.8,3710.6,1.5063]
[1732948481089,0.55,3711.8,3711.3,2.69445]
[1732948481435,0.55,3711.8,3711.1,2.69459]
[1732948481593,0.55,3711.8,3711.2,2.69454]
[1732948481930,0.55,3711.8,3711.0,2.69468]
[1732948482438,0.55,3711.8,3711.2,2.69451]
[1732948482743,0.55,3711.8,3711.1,2.6946]
[1732948482919,0.55,3711.8,3710.9,2.69471]
[1732948483115,0.55,3711.8,3710.7,2.6949]
[1732948483429,0.55,3711.8,3711.3,2.69444]
[1732948483831,0.55,3711.8,3711.4,0.02694092]
[1732948484142,0.55,3711.8,3710.6,1.5063]
[1732948484143,0.55,3711.8,3711.5,2.69432]
[1732948484445,0.55,3711.8,3710.6,4.20122]
[1732948484446,0.55,3711.8,3710.6,1.5063]
[1732948484674,0.55,3711.8,3711.2,2.69451]
[1732948484833,0.55,3711.8,3711.3,2.69444]
[1732948485185,0.55,3711.8,3711.3,0.02693733]
[1732948485331,0.55,3711.8,3711.6,2.69418]
[1732948485974,0.55,3711.8,3711.4,2.6944]
[1732948486435,0.55,3711.8,3711.5,2.69432]
[1732948487259,0.55,3711.8,3711.6,2.69424]
[1732948487939,0.55,3711.8,3711.4,2.6944]
[1732948487940,0.55,3711.8,3711.7,2.69418]
[1732948488786,0.55,3711.8,3711.5,2.69432]
[1732948488933,0.55,3711.8,3711.6,2.69425]
[1732948489888,0.55,3711.8,3711.3,2.69446]
[1732948490248,0.55,3711.8,3711.5,2.69427]
[1732948491463,0.55,3711.8,3711.6,2.69425]
[1732948491793,0.55,3711.8,3711.3,2.69446]
[1732948491973,0.55,3711.8,3711.4,2.69433]
[1732948492887,0.55,3711.8,3711.7,2.69418]
[1732948493388,2.07576039,3712.3,3711.7,0.27211198]
[1732948493545,1.5347,3712.3,3712.0,2.69394]
[1732948494172,1.5347,3712.3,3711.8,2.69411]
[1732948494372,1.5347,3712.3,3711.6,2.96334]
[1732948494611,0.52910821,3712.6,3711.9,2.69403]
[1732948494887,0.55,3712.5,3712.1,2.69389]
[1732948495071,0.55,3712.5,3712.2,2.69381]
[1732948495757,0.55,3712.5,3711.9,2.69403]
[1732948496382,1.08071982,3712.5,3711.9,2.69397]
[1732948496903,1.08071982,3712.5,3711.9,2.96307]
[1732948497309,1.08071982,3712.5,3712.0,2.6939]
[1732948497902,2.5084027,3712.9,3712.0,1.5266]
[1732948498107,2.74040527,3714.1,3712.0,1.5266]
[1732948498108,1.5347,3713.2,3712.3,2.6937]
[1732948498263,2.69318,3713.1,3712.3,2.6937]
[1732948498464,1.5347,3713.2,3712.1,2.96296]
[1732948498465,2.6933,3713.0,3712.2,2.6938]
[1732948498781,0.4228,3712.9,3712.2,2.6938]
[1732948499107,0.4228,3712.9,3712.4,0.2691]
[1732948499648,0.55,3712.8,3712.3,2.69374]
[1732948499901,0.55,3712.6,3712.0,0.2691]
[1732948500102,0.55,3712.6,3711.9,2.69399]
[1732948500103,2.69363,3712.5,3712.1,0.2691]
[1732948500312,1.027833,3712.4,3711.4,1.5266]
[1732948500464,1.027833,3712.4,3711.8,2.69405]
[1732948500664,0.55,3712.6,3711.8,2.69405]
[1732948500878,3.24355,3712.6,3711.9,0.2691]
[1732948501925,3.24355,3712.6,3711.7,0.2691]
[1732948502119,0.55,3712.4,3711.7,2.96326]
[1732948502424,0.55,3712.6,3711.9,0.2691]
[1732948502626,2.69368,3712.4,3711.9,0.2691]
[1732948502778,2.0847,3712.0,3711.0,0.2691]
[1732948502984,2.0847,3712.0,3711.1,2.69461]
[1732948503441,2.0847,3712.0,3711.2,2.69449]
[1732948503620,2.0847,3712.0,3711.0,0.2691]
[1732948503621,1.5347,3711.7,3711.0,0.2691]
[1732948503947,0.55,3711.6,3711.0,2.69463]
[1732948504090,1.5347,3711.5,3710.6,0.2691]
[1732948504290,1.5347,3711.5,3709.9,1.5266]
[1732948504291,0.55,3710.9,3709.9,1.5266]
[1732948504658,0.55,3711.2,3711.1,2.69461]
[1732948504798,1.5347,3711.9,3711.1,0.269461]
[1732948504799,0.25180107,3711.8,3711.1,0.269461]
[1732948504997,1.5347,3711.9,3711.4,2.69433]
[1732948505540,1.5347,3711.9,3711.2,2.69454]
[1732948505747,1.5347,3711.9,3711.8,2.69411]
[1732948505928,0.30422129,3712.6,3711.9,2.69403]
[1732948505929,1.5347,3712.2,3711.9,2.69403]
[1732948506095,0.82552185,3712.9,3711.6,1.5266]
[1732948506096,0.54469107,3712.1,3711.6,1.5266]
[1732948506300,1.5347,3713.1,3712.7,2.69345]
[1732948506840,1.5347,3713.1,3712.8,2.69336]
[1732948506999,1.5347,3713.1,3712.2,1.5266]
[1732948507229,1.5347,3713.1,3712.7,2.69344]
[1732948507427,0.55148287,3712.9,3712.5,2.69357]
[1732948507675,0.55148287,3712.9,3711.9,2.96308]
[1732948507676,0.55148287,3712.9,3711.9,0.2691]
[1732948507830,0.55148287,3712.9,3712.6,2.69351]
[1732948508030,1.5211,3713.6,3712.5,1.6439]
[1732948508236,1.5211,3713.6,3713.2,2.69308]
[1732948508461,1.5211,3713.6,3712.5,1.6439]
[1732948508462,1.5211,3712.9,3712.2,0.2691]
[1732948508768,2.69303,3713.3,3711.9,0.206566]
[1732948508769,1.5211,3713.3,3713.2,2.69309]
[1732948509082,1.5211,3713.7,3712.6,2.69353]
[1732948509282,0.5417803,3714.1,3713.3,1.6439]
[1732948509580,1.5211,3714.3,3713.3,1.6439]
[1732948509950,0.54781745,3714.5,3714.1,2.69243]
[1732948510279,0.54781745,3714.5,3714.1,2.69238]
[1732948510432,0.54781745,3714.5,3714.0,2.69248]
[1732948510861,0.54781745,3714.5,3713.9,2.69258]
[1732948511056,0.54781745,3714.5,3713.9,2.69253]
[1732948511057,0.55,3714.4,3713.9,2.69253]
[1732948511261,0.55,3714.4,3713.3,1.6439]
[1732948511434,1.5211,3715.3,3714.4,2.69216]
[1732948511646,0.54323569,3715.1,3714.6,2.69204]
[1732948511849,0.54323569,3715.1,3714.0,1.913]
[1732948512072,0.54323569,3715.1,3714.1,0.1913]
[1732948512281,0.54323569,3715.1,3714.7,2.692]
[1732948513040,0.55,3715.0,3714.9,2.69184]
[1732948513638,1.5211,3715.7,3714.9,0.0269168]
[1732948513896,0.14233432,3717.1,3714.4,1.6439]
[1732948513897,4.21184,3716.5,3715.6,2.69135]
[1732948514055,0.690248,3716.4,3715.2,1.6439]
[1732948514383,1.5211,3716.5,3715.4,2.69146]
[1732948514681,0.1,3717.7,3715.2,1.6439]
[1732948514682,1.5211,3716.9,3716.2,2.69087]
[1732948514927,1.5211,3716.9,3716.5,2.69063]
[1732948515689,1.5211,3716.9,3716.6,2.69061]
[1732948515884,1.5211,3716.9,3716.7,2.69049]
[1732948515885,0.55,3716.8,3716.7,2.69049]
[1732948516188,0.55,3716.8,3716.5,2.69063]
[1732948516189,1.5211,3717.7,3717.2,2.69012]
[1732948516404,0.15211,3717.6,3717.2,2.69012]
[1732948516574,0.15211,3717.6,3717.3,2.6901]
[1732948516776,1.5211,3718.1,3717.6,2.68988]
[1732948516971,1.5211,3718.7,3717.6,2.68988]
[1732948517189,0.54985036,3718.6,3717.9,2.68968]
[1732948517387,0.54985036,3718.6,3718.0,2.71650332]
[1732948517603,0.54985036,3718.6,3718.0,2.68961]
[1732948517819,0.20709504,3718.5,3717.8,2.68973]
[1732948518104,0.20709504,3718.5,3717.7,4.33368]
[1732948518286,0.20709504,3718.5,3717.7,1.6439]
[1732948518503,1.5211,3719.3,3718.3,2.68934]
[1732948518703,2.06879746,3719.3,3718.4,2.68932]
[1732948518933,2.06879746,3719.3,3718.5,2.68922]
[1732948519150,1.5211,3719.9,3718.6,4.33305]
[1732948519308,1.5211,3719.9,3719.0,2.68888]
[1732948519488,0.42093,3719.8,3719.0,2.68888]
[1732948519688,0.42093,3719.8,3718.6,1.6439]
[1732948519689,0.42093,3719.8,3719.1,2.6888]
[1732948520006,0.52832137,3719.7,3718.8,2.68901]
[1732948520205,0.52832137,3719.7,3718.6,1.6439]
[1732948520519,1.5211,3719.9,3719.1,2.68881]
[1732948520720,1.5211,3719.9,3718.6,1.6439]
[1732948520905,2.53291383,3720.6,3718.2,2.68944]
[1732948520906,1.5211,3719.5,3718.2,2.68944]
[1732948521103,0.15211,3719.4,3718.2,2.68944]
[1732948521306,2.84073,3719.4,3718.1,2.68951]
[1732948521519,0.15211,3719.4,3718.0,2.68956]
[1732948521787,0.55,3719.0,3717.7,1.6439]
[1732948522002,0.55,3718.6,3717.6,2.68983]
[1732948522254,0.55,3718.6,3717.7,2.6898]
[1732948523007,3.2392,3718.6,3717.7,2.6898]
[1732948524008,2.68926,3718.5,3717.4,2.69005]
[1732948524345,0.55,3718.4,3717.4,2.69005]
[1732948524638,0.55,3718.2,3717.4,2.69005]
[1732948524843,0.55,3717.7,3716.6,1.6439]
[1732948525140,0.55,3717.7,3716.8,2.69042]
[1732948525141,3.23983,3717.7,3716.8,2.69042]
[1732948525300,0.52895424,3717.9,3716.6,4.33451]
[1732948525301,2.68971,3717.9,3716.9,2.69039]
[1732948525498,0.55,3717.7,3716.9,2.69039]
[1732948525725,0.476081,3717.8,3717.2,2.69015]
[1732948526057,2.68924,3718.6,3717.0,2.69034]
[1732948526258,4.21034,3718.6,3717.7,2.68977]
[1732948526551,4.73660482,3718.6,3717.7,2.68977]
[1732948526720,2.04736482,3718.6,3716.7,0.02689357]
[1732948526924,2.04736482,3718.6,3717.5,2.68996]
[1732948527111,2.5210053,3718.6,3717.7,2.68983]
[1732948527307,2.68936,3718.4,3717.5,2.68996]
[1732948527508,5.2102053,3718.6,3717.7,2.68976]
[1732948527714,0.55,3718.5,3717.6,2.68989]
[1732948527938,2.68961,3718.1,3717.2,2.69017]
[1732948528156,2.5210053,3718.6,3716.8,2.69045]
[1732948528157,0.55,3717.6,3716.8,2.69045]
[1732948528317,0.55,3717.6,3717.2,2.69018]
[1732948528511,0.55,3717.9,3717.2,2.69013]
[1732948528927,0.55,3717.9,3717.8,2.68976]
[1732948529130,0.52626482,3718.6,3717.8,2.68976]
[1732948529131,4.21803,3718.9,3717.8,2.68976]
[1732948529327,0.421803,3718.8,3717.9,2.68963]
[1732948529531,2.68913,3718.7,3717.9,2.68963]
[1732948529946,2.68926,3718.5,3717.7,2.68982]
[1732948530260,2.68911,3718.7,3717.8,2.6897]
[1732948530461,0.55,3718.6,3717.9,2.68966]
[1732948530773,0.55,3718.6,3717.6,2.68989]
[1732948530774,0.55,3718.6,3717.8,2.68973]
[1732948531066,0.55,3718.8,3718.3,2.68933]
[1732948531270,0.55,3718.8,3717.8,0.537958]
[1732948531271,0.55,3718.8,3718.0,2.68954]
[1732948531559,0.55,3718.8,3717.8,0.537958]
[1732948531932,0.55,3718.8,3718.2,2.6894]
[1732948532131,0.55,3718.6,3718.3,2.68938]
[1732948532311,0.55,3718.6,3718.0,2.68961]
[1732948532512,0.55,3718.7,3718.0,2.68961]
[1732948532767,0.55,3718.5,3718.0,2.68961]
[1732948533056,3.62193103,3718.5,3717.7,2.95891]
[1732948533361,0.55,3718.3,3717.6,2.6899]
[1732948533595,2.68962,3718.0,3717.2,2.69017]
[1732948533738,0.55,3717.9,3717.2,2.69017]
[1732948534087,2.69001,3717.5,3716.7,2.69052]
[1732948534286,2.69001,3717.5,3715.5,2.6914]
[1732948534287,0.55,3716.8,3715.8,2.6912]
[1732948534440,0.03718494,3716.7,3716.1,2.69098]
[1732948534640,0.55,3716.6,3715.2,2.69164]
[1732948534842,4.25690236,3716.5,3715.6,2.69128]
[1732948535137,0.55,3716.4,3715.9,2.69112]
[1732948535369,0.55,3716.4,3716.1,2.69099]
[1732948535549,0.55,3716.2,3716.1,2.69099]
[1732948535752,5.22308383,3717.3,3715.3,0.02690725]
[1732948535753,0.55,3716.8,3715.7,2.69122]
[1732948535963,0.55,3716.8,3715.8,0.296032]
[1732948535964,0.03686237,3716.2,3715.8,0.296032]
[1732948536176,0.55,3716.8,3716.5,2.69068]
[1732948536585,0.03662957,3716.7,3716.3,2.69078]
[1732948536796,0.55,3716.6,3716.4,2.69071]
[1732948537082,0.55,3716.6,3716.5,2.6907]
[1732948537283,0.55,3716.8,3716.5,2.6907]
[1732948538738,0.55,3716.6,3716.5,2.6907]
[1732948539142,0.58663944,3716.6,3716.5,2.6907]
[1732948539337,0.03663944,3716.6,3716.5,3.228848]
[1732948539536,0.55,3717.2,3717.0,2.69028]
[1732948539784,5.22245383,3718.2,3717.0,2.69028]
[1732948539785,2.68971,3717.9,3717.0,2.69028]
[1732948540080,2.68971,3717.9,3717.2,2.69012]
[1732948540289,3.2215009,3717.7,3717.0,2.69028]
[1732948540580,0.5316609,3717.7,3717.0,2.69028]
[1732948541106,3.2214909,3717.7,3717.0,2.69028]
[1732948541293,3.2214909,3717.7,3716.5,2.049548]
[1732948541294,0.5316609,3717.7,3717.1,2.69025]
[1732948541460,1.529,3718.1,3716.5,2.049548]
[1732948541784,1.529,3718.1,3717.6,2.68989]
[1732948541946,1.529,3718.1,3717.7,2.68978]
[1732948542137,1.529,3718.1,3716.7,0.2691]
[1732948542138,2.68984,3717.7,3716.7,0.2691]
[1732948542341,0.03677782,3718.0,3716.9,2.69041]
[1732948542570,0.03699441,3717.6,3717.5,2.68996]
[1732948542769,1.529,3718.1,3717.5,2.68996]
[1732948542989,0.55,3718.0,3717.5,2.68996]
[1732948543151,0.55,3718.0,3717.3,0.02689632]
[1732948543357,1.529,3718.1,3717.7,2.68977]
[1732948543575,0.53252223,3718.2,3717.6,2.68983]
[1732948544256,0.53252223,3718.2,3717.3,2.69005]
[1732948544583,0.55,3718.1,3717.0,4.20173]
[1732948544940,0.55,3718.1,3717.3,2.69009]
[1732948545092,0.55,3718.1,3717.5,2.68997]
[1732948545890,0.55,3718.1,3717.6,2.6899]
[1732948546576,0.55,3718.1,3717.9,2.68967]
[1732948546787,0.55,3718.1,3717.7,2.68979]
[1732948547094,0.55,3718.1,3717.7,2.68977]
[1732948547289,0.55,3718.1,3717.1,0.420173]
[1732948547490,3.23974,3717.9,3716.3,1.5114]
[1732948547689,0.55,3717.6,3716.3,1.5114]
[1732948547847,0.55,3717.6,3716.6,2.69057]
[1732948548051,0.55,3717.1,3716.4,2.69077]
[1732948548253,0.55,3717.1,3716.3,4.20224]
[1732948548461,0.55,3717.1,3716.3,0.420224]
[1732948548670,0.55,3717.1,3716.8,2.69043]
[1732948549603,0.55,3717.1,3716.9,2.69038]
[1732948550156,0.55,3717.1,3716.6,2.69062]
[1732948550354,0.55,3717.1,3716.3,2.69084]
[1732948550565,0.55,3717.3,3716.9,2.69035]
[1732948550768,0.55,3717.3,3717.0,2.69031]
[1732948550956,0.55,3717.3,3716.8,2.69042]
[1732948551771,0.55,3717.3,3716.6,2.69062]
[1732948551971,0.55,3717.1,3716.9,2.6904]
[1732948552271,0.03704379,3717.0,3716.9,2.6904]
[1732948552901,0.03704379,3717.0,3716.7,2.69051]
[1732948553201,0.55,3716.9,3716.7,2.69051]
[1732948553406,0.55,3716.9,3716.6,2.69062]
[1732948553576,0.03704124,3716.8,3716.4,2.69077]
[1732948553775,0.58704124,3716.8,3716.7,0.2691]
[1732948554074,0.58704124,3716.8,3716.7,2.95965]
[1732948554274,0.58704124,3716.8,3716.7,3.524685]
[1732948554275,0.03704124,3716.8,3716.7,3.524685]
[1732948554471,1.5537,3717.6,3716.7,5.151985]
[1732948554675,0.53597373,3717.7,3717.5,2.68997]
[1732948555396,0.53597373,3717.7,3717.6,2.6899]
[1732948555597,1.5537,3718.0,3717.7,2.68982]
[1732948556123,2.07987983,3718.0,3717.7,2.68982]
[1732948556486,2.68998,3717.5,3715.8,1.6273]
[1732948556686,2.68998,3717.5,3716.9,2.69039]
[1732948556923,0.55,3717.6,3716.9,2.69039]
[1732948557223,0.55,3717.4,3715.8,1.6273]
[1732948557383,2.69034,3717.0,3716.6,0.2691]
[1732948557582,0.55,3716.9,3716.3,2.69079]
[1732948557783,0.55,3716.9,3716.4,2.69077]
[1732948558123,3.24031,3717.1,3716.4,2.69071]
[1732948558626,3.24031,3717.1,3716.4,0.2691]
[1732948558627,0.55,3716.9,3716.4,0.2691]
[1732948558786,0.55,3717.1,3716.4,0.565093]
[1732948558988,1.5537,3717.3,3716.5,0.02690237]
[1732948559203,2.53291383,3718.2,3716.5,0.02690237]
[1732948559204,2.68977,3717.8,3716.6,1.6273]
[1732948559524,4.24341,3717.9,3717.2,2.69017]
[1732948559724,0.54185561,3717.6,3717.2,2.69017]
[1732948559929,0.54185561,3717.6,3717.0,2.69033]
[1732948560157,0.54185561,3717.6,3717.2,2.69016]
[1732948560358,0.54185561,3717.6,3716.6,1.8964]
[1732948560359,0.54185561,3717.6,3717.3,2.69011]
[1732948560659,2.68976,3717.8,3717.1,2.69022]
[1732948560855,3.4038718,3717.8,3717.2,2.69017]
[1732948561060,3.4038718,3717.8,3717.0,2.6903]
[1732948561366,3.4038718,3717.8,3716.9,2.6904]
[1732948561534,0.55,3717.7,3717.3,2.69012]
[1732948561918,0.55,3717.8,3717.5,2.68996]
[1732948562356,1.08894906,3717.8,3717.4,2.69004]
[1732948562750,0.55,3717.6,3717.4,2.69004]
[1732948563070,0.03650075,3717.7,3717.6,2.6899]
[1732948563360,1.5537,3717.9,3717.4,2.68999]
[1732948563545,1.5537,3717.9,3717.0,0.2691]
[1732948563788,1.5537,3717.9,3717.6,2.68989]
[1732948563970,1.5537,3717.9,3717.2,2.69019]
[1732948564171,1.5537,3717.9,3717.1,0.2691]
[1732948564372,0.55,3717.8,3717.5,2.68991]
[1732948564787,0.55,3717.8,3717.3,2.69012]
[1732948565105,0.55,3717.4,3715.7,2.04190178]
[1732948565405,0.55,3717.4,3716.8,2.69045]
[1732948565572,1.09989881,3717.5,3716.9,2.69036]